bitfinex/quotes_ETHUSD_20241022
["timestamp","ask_amount","ask_price","bid_price","bid_amount"]
[1729587968297,0.01,2629.4,2629.1,0.09520337]
[1729587968450,0.02,2629.4,2629.2,3.80343]
[1729587968654,0.02,2629.4,2629.2,3.89859035]
[1729587968859,0.02,2629.4,2629.2,0.09516035]
[1729587969057,0.07599134,2629.3,2629.0,3.85799244]
[1729587970154,0.09599134,2629.4,2629.0,3.85799244]
[1729587970349,0.09599134,2629.4,2629.1,3.80357]
[1729587970655,0.09599134,2629.4,2629.0,7.66163244]
[1729587970866,0.09599134,2629.4,2629.0,3.85799244]
[1729587971055,0.09599134,2629.4,2629.1,3.80357]
[1729587971805,0.02,2629.4,2629.2,3.80334]
[1729587971956,0.02,2629.4,2629.2,7.60668]
[1729587972154,0.07599134,2629.7,2629.2,0.76610624]
[1729587972397,0.85989134,2629.8,2629.5,3.80291]
[1729587972596,0.09599134,2629.8,2629.5,3.80291]
[1729587972756,0.02,2629.8,2629.6,3.80273]
[1729587973159,0.01,2629.8,2629.7,3.80271]
[1729587973471,0.02,2630.0,2629.7,7.60534]
[1729587973666,0.752,2630.2,2629.7,7.60534]
[1729587973667,1.44358924,2630.2,2629.9,3.80242]
[1729587973865,0.01,2630.0,2629.9,3.80242]
[1729587974067,0.07599134,2630.0,2629.9,3.80242]
[1729587974270,0.01,2630.0,2629.9,3.80242]
[1729587974568,0.01,2630.0,2629.7,3.80263]
[1729587975914,0.01,2629.8,2629.5,3.80293]
[1729587976097,0.796,2629.8,2629.5,3.80293]
[1729587976606,0.07599134,2629.7,2629.3,3.8032]
[1729587976766,0.01,2629.6,2629.3,3.8032]
[1729587976970,0.01,2629.6,2629.1,2.97686507]
[1729587977222,0.01,2629.6,2629.2,3.80333]
[1729587978117,0.797,2629.1,2629.0,0.05438244]
[1729587978474,4.98887913,2629.1,2629.0,0.05438244]
[1729587978674,1.18529913,2629.1,2629.0,0.05438244]
[1729587979175,4.98887913,2629.1,2629.0,0.05438244]
[1729587979371,1.26129047,2629.1,2629.0,0.05438244]
[1729587980231,0.87299134,2629.1,2629.0,0.05438244]
[1729587980565,0.08599134,2629.1,2629.0,0.05438244]
[1729587981526,3.88957134,2629.1,2629.0,0.05438244]
[1729587982363,3.88957134,2629.1,2629.0,0.14993383]
[1729587982521,0.08599134,2629.1,2629.0,0.14993383]
[1729587982955,0.07599134,2629.1,2629.0,0.14993383]
[1729587983264,0.7521,2629.1,2629.0,0.14993383]
[1729587984282,0.09599134,2629.2,2629.0,0.14993383]
[1729587984791,0.02,2629.2,2629.0,0.14993383]
[1729587984975,0.02,2629.2,2629.0,3.95356383]
[1729587985688,0.01,2629.2,2629.1,3.80358]
[1729587985988,0.01,2629.2,2629.1,3.89935463]
[1729587986600,0.01,2629.6,2629.2,3.80329]
[1729587986791,0.01,2629.6,2629.2,7.60664]
[1729587986947,0.01,2629.6,2629.3,3.8989186]
[1729587988049,0.86519134,2629.7,2629.3,0.0956886]
[1729587988391,0.08599134,2629.8,2629.5,3.80298]
[1729587988590,0.01,2629.6,2629.3,0.48558646]
[1729587988788,0.01,2629.6,2629.3,3.80329]
[1729587988993,0.01,2629.7,2629.4,3.80313]
[1729587989751,0.01,2629.8,2629.6,3.80285]
[1729587990277,0.01,2629.9,2629.6,3.80285]
[1729587991047,0.01,2629.9,2629.6,7.60562]
[1729587991252,0.01,2629.9,2629.6,3.80277]
[1729587993495,0.01,2629.9,2629.7,3.80263]
[1729587993991,0.01,2629.9,2629.6,4.563414]
[1729587995054,3.8125,2629.9,2629.4,3.80305]
[1729587995396,0.01,2629.7,2629.4,3.80305]
[1729587995693,0.01,2629.7,2629.0,3.429001]
[1729587995694,0.01,2629.3,2629.0,0.05438244]
[1729587996200,3.81358,2629.1,2629.0,0.05438244]
[1729587996382,3.88957134,2629.1,2629.0,0.05438244]
[1729587996690,0.08599134,2629.1,2629.0,0.05438244]
[1729587997253,0.08599134,2629.1,2629.0,0.1501945]
[1729587997458,0.797,2629.2,2629.0,0.1501945]
[1729587997797,0.01,2629.2,2629.1,3.80358]
[1729587998003,0.01,2629.4,2629.1,4.58173356]
[1729587998151,0.01,2629.4,2629.1,3.89934904]
[1729587998152,0.01,2629.3,2629.1,3.89934904]
[1729587998354,0.02,2629.6,2629.2,3.80331]
[1729587998602,0.09599134,2629.6,2629.2,6.87596212]
[1729587998924,0.02,2629.6,2629.4,3.80314]
[1729587999117,0.02,2629.6,2629.4,3.80313]
[1729587999317,0.02,2629.6,2629.5,0.09565802]
[1729588000093,0.01,2629.6,2629.4,3.80314]
[1729588000334,0.01,2629.6,2629.5,0.09565802]
[1729588000627,0.02,2629.8,2629.5,0.09565802]
[1729588001320,4.67258613,2629.8,2629.2,3.80334]
[1729588001649,0.01,2629.1,2629.0,0.05438244]
[1729588002414,0.08599134,2629.1,2629.0,0.05438244]
[1729588002729,0.01,2629.1,2629.0,0.05438244]
[1729588004607,3.81358,2629.1,2629.0,0.05438244]
[1729588004878,4.36844447,2629.1,2629.0,0.05438244]
[1729588005031,5.13824447,2629.1,2629.0,0.05438244]
[1729588005229,8.13824447,2629.1,2629.0,0.05438244]
[1729588005432,11.0391182,2629.1,2629.0,0.05438244]
[1729588005654,11.4416141,2629.1,2629.0,0.05438244]
[1729588006833,3.0,2629.0,2628.9,0.02397107]
[1729588007078,9.44103675,2629.0,2628.9,0.005]
[1729588007378,9.37504541,2629.0,2628.9,0.005]
[1729588007943,7.63739,2628.4,2628.3,2.0]
[1729588008140,7.71338134,2628.4,2628.3,1.9]
[1729588012531,7.71338134,2628.4,2628.3,1.0667]
[1729588012729,9.16485198,2628.4,2628.3,0.2334]
[1729588012931,0.55,2627.5,2627.4,0.01897107]
[1729588013137,4.65936,2626.9,2626.8,0.1280736]
[1729588013334,5.87963585,2626.9,2626.8,0.1280736]
[1729588013669,8.89963585,2626.9,2626.8,0.1280736]
[1729588013828,8.89963585,2626.9,2625.8,2.0]
[1729588013829,3.83705,2626.7,2625.8,2.0]
[1729588014028,7.73564134,2626.7,2626.1,2.97686507]
[1729588014271,7.63651507,2626.7,2626.6,1.3125]
[1729588014470,7.73564134,2626.7,2626.6,1.39888152]
[1729588014680,7.73564134,2626.7,2626.6,1.3125]
[1729588016085,4.29545518,2626.7,2626.6,4.37634685]
[1729588016243,3.82705,2626.7,2626.6,1.39948178]
[1729588016587,0.02,2626.7,2626.6,1.39948178]
[1729588018280,0.09599134,2626.7,2626.6,1.39948178]
[1729588019776,3.90304134,2626.7,2626.6,1.39948178]
[1729588019985,4.67404747,2626.7,2626.6,1.3125]
[1729588020155,8.46924747,2626.7,2626.6,1.3125]
[1729588020341,8.78559195,2626.7,2626.6,1.39945954]
[1729588020672,8.39325613,2626.7,2626.6,1.39945954]
[1729588020835,1.58620613,2626.7,2626.6,1.39945954]
[1729588021036,5.05906786,2626.7,2626.6,1.39945954]
[1729588021234,2.05906786,2626.7,2626.6,1.39945954]
[1729588022079,1.28806173,2626.7,2626.6,1.39945954]
[1729588022468,5.09511173,2626.7,2626.6,1.39945954]
[1729588022983,8.09511173,2626.7,2626.6,1.39945954]
[1729588023133,11.49729167,2626.7,2626.6,1.39945954]
[1729588023339,11.88957085,2626.7,2626.6,1.3125]
[1729588023590,14.02122894,2626.7,2626.6,1.3125]
[1729588024432,14.02122894,2626.7,2626.6,0.4792]
[1729588024663,14.02122894,2626.7,2625.8,2.0]
[1729588024664,7.59981,2625.9,2625.8,2.0]
[1729588024944,7.67580134,2625.9,2625.8,2.0]
[1729588025101,3.86759134,2625.9,2625.8,2.0]
[1729588025763,8.44336747,2625.9,2625.8,2.08807914]
[1729588025959,8.36737613,2625.9,2625.8,2.0]
[1729588026157,11.84554741,2625.9,2625.8,2.0]
[1729588027184,12.39554741,2625.9,2625.8,2.0]
[1729588028601,0.02,2625.1,2625.0,2.0]
[1729588028829,7.60267,2625.1,2625.0,2.0]
[1729588028990,7.60267,2625.1,2625.0,2.08406612]
[1729588028991,0.09599134,2625.1,2625.0,2.08406612]
[1729588029196,0.09599134,2625.1,2625.0,2.0]
[1729588029395,0.08599134,2625.1,2625.0,2.08406612]
[1729588029590,0.07599134,2625.7,2625.0,3.04416612]
[1729588029785,0.01,2625.9,2625.7,0.7601]
[1729588030015,0.02897107,2626.1,2625.9,3.80821]
[1729588030518,0.02897107,2626.1,2626.0,0.08433568]
[1729588030678,0.02897107,2626.1,2625.8,7.61653]
[1729588031028,0.02897107,2626.1,2625.9,0.08422855]
[1729588031524,0.02897107,2626.1,2625.7,4.56849]
[1729588031724,0.02897107,2626.1,2626.0,0.08418543]
[1729588032023,0.02897107,2626.1,2625.9,3.80815]
[1729588032178,0.02897107,2626.1,2626.0,0.08418543]
[1729588033017,0.01897107,2626.1,2626.0,3.89225543]
[1729588033171,0.08599134,2626.5,2626.3,3.80763]
[1729588033373,0.01,2626.5,2626.3,3.80763]
[1729588033702,0.01,2626.5,2626.4,0.85060688]
[1729588035683,0.01,2626.5,2626.4,4.65809688]
[1729588035916,0.07599134,2626.8,2626.4,5.50465757]
[1729588036127,0.5963616,2626.9,2626.8,4.56791]
[1729588036337,0.01897107,2627.4,2627.3,3.80618]
[1729588036621,0.01,2627.5,2627.4,3.80604]
[1729588037040,0.07599134,2627.9,2627.6,3.80575]
[1729588037340,0.01,2628.2,2627.9,4.606]
[1729588037498,0.01,2628.2,2628.1,7.28320128]
[1729588037879,0.02,2628.6,2628.1,7.36536985]
[1729588038130,0.09496241,2628.7,2628.5,3.47817128]
[1729588038280,0.07599134,2628.8,2628.5,4.29027128]
[1729588038479,0.07599134,2628.8,2627.4,7.99936823]
[1729588038480,0.01,2628.6,2628.4,3.47817128]
[1729588038682,0.09599134,2628.6,2628.2,0.8121]
[1729588038990,0.09599134,2628.6,2628.1,3.47817128]
[1729588039952,0.09599134,2628.6,2628.4,3.47817128]
[1729588040227,0.02,2628.8,2628.4,3.47817128]
[1729588040376,0.01,2628.4,2628.1,3.47817128]
[1729588041203,0.01,2628.2,2627.9,0.8259]
[1729588041388,0.01,2628.0,2627.8,3.47817128]
[1729588041725,0.01,2627.6,2627.2,3.47817128]
[1729588041906,0.01,2627.6,2626.8,8.05698128]
[1729588041907,0.01,2627.3,2626.8,8.05698128]
[1729588042225,0.01,2627.1,2626.8,4.25017128]
[1729588042423,0.01,2627.3,2626.8,3.47817128]
[1729588042424,0.01,2626.9,2626.8,3.47817128]
[1729588042721,0.01,2626.9,2626.5,4.27297128]
[1729588042923,0.01,2626.9,2626.5,8.08031128]
[1729588043222,0.08599134,2627.1,2626.8,3.47817128]
[1729588043432,0.01,2627.2,2626.8,7.28494128]
[1729588043634,0.01,2627.2,2627.1,3.47817128]
[1729588043920,0.01,2627.3,2627.1,3.47817128]
[1729588044333,0.01,2627.2,2627.1,3.47817128]
[1729588044992,0.01,2627.3,2626.5,4.60214]
[1729588044993,0.01,2627.0,2626.8,3.47817128]
[1729588045204,0.01,2627.0,2626.5,8.08031128]
[1729588045522,0.01,2627.0,2626.5,8.08020128]
[1729588046084,0.01,2627.1,2626.8,3.47817128]
[1729588046295,0.01,2627.2,2626.8,3.47817128]
[1729588046602,0.01,2627.1,2626.8,7.28505128]
[1729588047193,0.01,2627.2,2626.9,3.80676]
[1729588047390,0.01,2627.2,2627.1,3.47817128]
[1729588047599,0.08599134,2627.3,2627.1,8.04801128]
[1729588047895,0.01,2627.7,2627.3,3.80605]
[1729588048097,0.09599134,2627.8,2627.5,7.28406128]
[1729588048596,0.7849,2628.0,2627.5,7.28406128]
[1729588048597,0.02,2628.0,2627.5,7.28404128]
[1729588048898,0.01,2628.2,2627.9,3.47817128]
[1729588049100,0.01,2628.3,2628.1,3.47817128]
[1729588050606,0.01,2628.1,2627.8,3.47817128]
[1729588050815,0.01,2628.1,2627.8,7.28361128]
[1729588050993,0.08599134,2628.3,2627.9,3.80523]
[1729588051228,0.01,2628.1,2628.0,3.47817128]
[1729588054808,0.01,2628.1,2627.7,7.28377128]
[1729588055014,0.01,2628.1,2627.8,3.80545]
[1729588055335,0.01,2628.1,2627.7,3.47817128]
[1729588055703,0.01,2628.1,2627.7,7.28377128]
[1729588056002,0.01,2628.1,2627.3,4.26887128]
[1729588056003,0.01,2627.8,2627.3,4.26887128]
[1729588056204,0.01,2627.6,2627.2,3.80624]
[1729588056504,0.01,2627.4,2627.1,3.80641]
[1729588056704,0.01,2627.4,2627.1,3.80639]
[1729588056907,0.01,2627.2,2626.7,7.28516128]
[1729588057115,0.01,2627.2,2626.9,3.80673]
[1729588057445,0.01,2627.2,2626.8,0.07615313]
[1729588057446,0.08599134,2627.2,2626.8,0.07615313]
[1729588057606,0.08599134,2627.2,2627.0,0.07607251]
[1729588057805,0.01,2627.0,2626.7,3.47817128]
[1729588058045,0.01,2627.0,2626.4,3.47817128]
[1729588058046,0.01,2626.8,2626.4,3.47817128]
[1729588058262,0.01,2626.6,2626.4,3.47817128]
[1729588058543,0.01,2626.4,2626.2,3.80763]
[1729588058822,0.01,2626.4,2626.1,7.28603128]
[1729588059088,0.01,2626.4,2626.2,3.80766]
[1729588059262,0.01,2626.6,2626.3,3.80763]
[1729588059462,0.01,2626.6,2626.5,7.28551128]
[1729588060283,0.01,2626.7,2626.6,3.8072]
[1729588061544,0.01,2626.7,2626.5,7.28551128]
[1729588061746,0.02,2626.7,2626.5,3.47817128]
[1729588063213,0.01,2626.3,2625.9,3.47817128]
[1729588063657,0.01,2626.3,2625.9,7.28635128]
[1729588063845,0.01,2626.3,2625.9,11.09448128]
[1729588064045,0.09599134,2626.5,2626.2,3.47817128]
[1729588064246,0.02,2626.5,2626.2,3.47817128]
[1729588064470,0.02,2626.5,2626.2,7.28593128]
[1729588065023,0.02,2626.7,2626.4,7.61488]
[1729588065203,0.02,2627.0,2626.6,3.47817128]
[1729588065362,0.02,2627.0,2626.8,3.80689]
[1729588065544,0.02,2627.0,2626.7,3.80692]
[1729588065749,0.02,2627.0,2626.6,3.47817128]
[1729588066385,0.01,2627.0,2626.7,3.80697]
[1729588066616,0.07599134,2627.1,2626.9,3.47817128]
[1729588066816,0.01,2627.0,2626.9,3.47817128]
[1729588067048,0.07599134,2627.1,2626.9,3.47817128]
[1729588067317,0.02,2627.2,2627.1,3.80647]
[1729588067318,0.01,2627.2,2627.1,3.80647]
[1729588068569,0.01,2627.2,2627.0,0.8163]
[1729588068772,0.01,2627.2,2626.9,7.28493128]
[1729588068987,0.01,2626.9,2626.6,3.47817128]
[1729588069679,0.01,2626.8,2626.6,3.47817128]
[1729588069973,0.01,2626.7,2626.3,3.47817128]
[1729588070203,0.55728547,2626.7,2626.3,3.47817128]
[1729588070420,0.08599134,2626.7,2626.3,3.47817128]
[1729588071025,0.08599134,2626.7,2626.3,7.28580128]
[1729588071026,0.01,2626.5,2626.3,7.28580128]
[1729588072314,0.01,2626.5,2626.4,0.07723667]
[1729588073275,0.08599134,2626.7,2626.4,0.07723667]
[1729588073718,0.08599134,2626.7,2626.4,3.88464667]
[1729588074015,0.08599134,2626.7,2626.4,0.07723667]
[1729588074522,0.01,2626.5,2626.4,0.07723667]
[1729588076012,0.01,2626.5,2626.4,3.88472667]
[1729588076389,0.01,2626.5,2626.4,0.07723667]
[1729588076616,0.01,2626.5,2626.4,3.88472667]
[1729588077001,0.08599134,2626.7,2626.4,3.88472667]
[1729588077333,0.08599134,2626.7,2626.4,0.07723667]
[1729588078180,0.08599134,2626.7,2626.5,3.80733]
[1729588078381,0.01,2626.7,2626.5,3.88482923]
[1729588079010,0.01,2626.7,2626.5,3.88475923]
[1729588079183,0.01,2626.7,2626.6,3.47817128]
[1729588079520,0.01,2626.7,2626.6,7.36282185]
[1729588079728,0.01,2626.9,2626.7,3.80696]
[1729588080095,0.01,2627.2,2627.0,3.80662]
[1729588080299,0.01,2627.2,2627.0,3.47817128]
[1729588080494,0.01,2627.2,2627.1,0.0772351]
[1729588080699,0.01,2627.4,2627.2,3.80633]
[1729588080927,0.08599134,2627.6,2627.4,3.80604]
[1729588081114,0.01,2627.5,2627.3,3.55532022]
[1729588081333,0.01,2627.5,2627.3,7.28435128]
[1729588081534,0.01,2627.5,2627.4,3.80604]
[1729588081837,0.02,2627.8,2627.3,3.47817128]
[1729588082050,0.02,2627.8,2627.6,3.80567]
[1729588082946,0.02,2627.8,2627.4,3.80594]
[1729588083152,0.01,2627.4,2627.0,4.25317128]
[1729588083319,0.01,2627.4,2626.8,3.80683]
[1729588083320,0.01,2627.1,2626.8,3.80683]
[1729588083518,0.01,2626.9,2626.7,1.5794986]
[1729588083701,0.08599134,2627.0,2626.8,3.80683]
[1729588084043,0.01,2627.0,2626.9,3.80676]
[1729588084208,0.01,2627.0,2626.8,3.80683]
[1729588084749,0.01,2627.0,2626.8,3.80682]
[1729588085043,0.01,2627.1,2626.8,3.80682]
[1729588085301,0.01,2627.0,2626.8,7.61364]
[1729588085589,0.01,2627.0,2626.8,3.80682]
[1729588086178,0.08599134,2627.0,2626.8,3.80682]
[1729588086379,0.01,2627.0,2626.8,3.80682]
[1729588087208,0.01,2627.0,2626.9,0.07645442]
[1729588087584,0.08599134,2627.0,2626.6,3.80711]
[1729588087902,0.01,2626.9,2626.6,3.80711]
[1729588088967,0.02,2626.7,2626.2,3.80769]
[1729588089285,0.01,2626.5,2626.4,3.80749]
[1729588089481,0.02,2626.7,2626.6,3.8072]
[1729588089686,0.01,2626.9,2626.8,3.80691]
[1729588089914,0.01,2626.9,2626.7,7.28521128]
[1729588090271,0.01,2626.9,2626.7,3.80704]
[1729588090472,0.01,2626.9,2626.8,3.80691]
[1729588090972,0.07599134,2627.1,2626.7,4.24187128]
[1729588090973,0.08599134,2627.1,2626.7,4.24187128]
[1729588091174,0.01,2627.3,2627.2,3.80633]
[1729588091611,0.01,2627.4,2627.3,3.80618]
[1729588092319,3.82436107,2627.9,2627.4,3.80604]
[1729588092320,0.02,2627.7,2627.4,3.80604]
[1729588092613,0.02,2627.7,2627.4,3.80595]
[1729588092985,0.02,2627.7,2627.4,7.6119]
[1729588093199,0.02,2627.7,2627.4,3.80595]
[1729588093413,0.02,2627.7,2627.3,3.47817128]
[1729588093715,0.02,2627.7,2627.4,3.80602]
[1729588093900,0.02,2627.7,2627.4,7.61196]
[1729588094105,0.02,2627.7,2627.6,3.80575]
[1729588096289,0.01,2627.7,2627.6,3.80575]
[1729588096689,0.09496241,2627.9,2627.8,3.80546]
[1729588096899,0.02,2628.0,2627.8,3.80537]
[1729588097223,0.01,2628.2,2628.1,3.80503]
[1729588097393,0.02,2628.2,2628.0,3.80516]
[1729588097728,0.02,2628.2,2628.0,3.80509]
[1729588097882,0.01,2628.2,2628.0,3.80509]
[1729588098229,0.01,2628.6,2628.5,3.80445]
[1729588098529,0.01,2629.0,2628.8,3.80401]
[1729588098740,0.02,2629.3,2628.8,3.80401]
[1729588099028,0.02,2629.1,2628.7,7.28232128]
[1729588099193,0.01,2629.3,2629.0,7.28189128]
[1729588099380,0.07599134,2629.4,2629.2,3.80343]
[1729588099578,0.08599134,2629.5,2629.2,3.80334]
[1729588099781,0.01,2629.6,2629.4,3.80314]
[1729588100023,0.01,2629.5,2629.2,4.59564]
[1729588100245,0.01,2629.5,2629.3,3.80328]
[1729588100445,0.01,2629.5,2629.0,11.08545128]
[1729588100604,0.01,2629.5,2629.0,7.28178128]
[1729588100950,0.01,2629.5,2629.2,3.80342]
[1729588101301,0.01,2629.5,2629.1,3.80357]
[1729588101505,0.01,2629.5,2629.0,7.28178128]
[1729588101767,0.01,2629.5,2629.0,7.35784781]
[1729588102064,0.01,2629.5,2629.2,3.80341]
[1729588102221,0.01,2629.5,2629.2,3.80334]
[1729588102407,0.01,2629.5,2629.3,0.07294167]
[1729588102829,0.01,2629.6,2629.3,0.07294167]
[1729588103026,0.08599134,2629.6,2629.3,0.07294167]
[1729588103227,0.01,2629.7,2629.4,3.80303]
[1729588103462,0.02,2629.7,2629.5,0.07285565]
[1729588103778,0.02,2629.7,2629.3,3.47817128]
[1729588104000,0.02,2629.7,2629.6,0.07281264]
[1729588104159,0.02,2629.7,2629.3,7.28144128]
[1729588104477,0.01,2629.7,2629.4,3.80313]
[1729588104775,0.01,2629.9,2629.4,0.80102878]
[1729588104776,0.08599134,2629.9,2629.4,0.80102878]
[1729588104983,0.11496241,2630.2,2629.7,3.80271]
[1729588105283,0.11496241,2630.2,2629.6,3.47817128]
[1729588105284,0.02,2630.0,2629.8,0.07272664]
[1729588105473,3.80243,2629.9,2629.8,0.07272664]
[1729588105681,3.87842134,2629.9,2629.3,7.28137128]
[1729588105973,0.38984213,2629.8,2629.3,7.28137128]
[1729588106129,0.07599134,2629.7,2629.3,7.28137128]
[1729588106326,0.01,2629.7,2629.3,7.28137128]
[1729588107374,5.5,2632.0,2629.0,3.0]
[1729588107375,0.01,2629.5,2629.0,3.47817128]
[1729588107879,0.47885713,2629.5,2629.0,3.47817128]
[1729588108063,0.08599134,2629.5,2629.1,3.80354]
[1729588108367,0.01,2629.5,2629.3,3.47817128]
[1729588109171,0.01,2629.5,2629.1,3.80354]
[1729588109497,0.01,2629.5,2628.5,3.80443]
[1729588109498,0.01,2629.3,2628.7,3.47817128]
[1729588109778,7.69277134,2629.3,2628.7,7.28221128]
[1729588109926,8.54233847,2629.3,2628.7,7.28221128]
[1729588110127,0.01,2629.0,2628.7,3.47817128]
[1729588110430,3.80387,2628.9,2628.4,7.28273128]
[1729588110629,0.07599134,2628.8,2628.4,7.28273128]
[1729588110830,0.01,2628.8,2628.4,7.28273128]
[1729588111130,0.01,2628.8,2628.1,7.28313128]
[1729588111441,3.82432,2628.6,2628.1,7.28313128]
[1729588111641,0.07599134,2628.5,2628.1,7.28313128]
[1729588111889,0.46928113,2628.8,2628.1,7.28313128]
[1729588111890,0.02,2628.8,2628.4,3.47817128]
[1729588112068,3.81445,2628.5,2628.1,3.47817128]
[1729588112370,0.01,2628.6,2628.3,3.80473]
[1729588112555,0.08599134,2628.8,2628.4,7.28275128]
[1729588112924,0.01,2628.8,2628.4,7.28275128]
[1729588113167,0.01,2628.8,2628.5,3.80443]
[1729588113731,0.01,2628.8,2628.4,7.28275128]
[1729588113732,0.89819134,2629.0,2628.6,3.80421]
[1729588114055,0.02,2629.0,2628.6,3.80421]
[1729588114744,3.82376,2629.0,2628.5,0.8295]
[1729588114950,0.07599134,2628.9,2628.5,0.8295]
[1729588115388,0.09599134,2629.0,2628.5,4.63386]
[1729588115589,0.01,2628.8,2628.4,3.47817128]
[1729588115788,3.81402,2628.8,2628.4,3.47817128]
[1729588116010,0.07599134,2628.7,2628.2,4.59746]
[1729588116194,0.07599134,2628.7,2628.2,8.40223]
[1729588116705,3.82433,2628.6,2628.1,7.28319128]
[1729588116876,0.07599134,2628.5,2628.1,7.28319128]
[1729588117085,0.07599134,2628.5,2628.1,3.47817128]
[1729588117306,0.07599134,2628.5,2628.2,0.07245034]
[1729588118080,0.09599134,2628.6,2628.2,3.87729034]
[1729588118334,0.01,2628.3,2628.2,0.07245034]
[1729588118712,0.01,2628.3,2627.8,7.28350128]
[1729588118876,0.08599134,2628.3,2627.8,7.28350128]
[1729588119088,0.08599134,2628.3,2627.9,0.0725795]
[1729588120043,0.08599134,2628.4,2627.9,0.0725795]
[1729588120206,0.09599134,2628.4,2628.0,3.80517]
[1729588120413,0.09599134,2628.4,2627.9,0.0725795]
[1729588120728,3.80474,2628.3,2628.0,0.07253644]
[1729588121104,3.80474,2628.3,2627.8,7.28350128]
[1729588121442,3.89087134,2628.2,2628.1,0.07249339]
[1729588121646,4.66143247,2628.2,2628.1,0.07249339]
[1729588121847,3.89087134,2628.2,2628.1,0.07249339]
[1729588122054,0.08599134,2628.2,2627.8,7.28361128]
[1729588122204,0.09599134,2628.4,2628.1,3.55122463]
[1729588122399,0.09599134,2628.4,2628.2,0.0730103]
[1729588122681,3.90062134,2628.4,2628.2,0.0730103]
[1729588122973,0.09599134,2628.4,2628.2,0.0730103]
[1729588123764,3.90059134,2628.4,2628.2,0.0730103]
[1729588124443,3.80474,2628.3,2627.8,3.47817128]
[1729588124664,0.07599134,2628.2,2627.8,3.47817128]
[1729588124821,0.07599134,2628.2,2627.9,0.07313946]
[1729588126423,0.8226,2628.1,2627.9,0.07313946]
[1729588126631,0.01,2628.0,2627.9,0.07313946]
[1729588127064,0.01,2628.0,2627.6,3.80574]
[1729588127362,0.01,2628.0,2627.9,0.07313946]
[1729588127657,0.01,2628.0,2627.6,3.80574]
[1729588128030,0.01,2628.0,2627.7,0.07322559]
[1729588128342,0.8226,2628.1,2627.7,0.07322559]
[1729588128546,0.01,2628.0,2627.7,0.07322559]
[1729588129167,0.02,2628.0,2627.8,3.47817128]
[1729588129335,0.02,2628.0,2627.8,3.5513538]
[1729588130450,0.02,2628.0,2627.8,3.05852141]
[1729588131858,0.01,2628.0,2627.8,3.05852141]
[1729588132344,0.02,2628.0,2627.8,3.05852141]
[1729588133156,3.81523,2628.0,2627.8,3.05852141]
[1729588133450,3.89122134,2628.0,2627.8,3.05852141]
[1729588133749,3.90122134,2628.0,2627.8,3.05852141]
[1729588133933,3.82523,2628.0,2627.8,3.05852141]
[1729588134543,3.81523,2628.0,2627.8,3.05852141]
[1729588134846,3.90122134,2628.0,2627.8,3.05852141]
[1729588135749,4.67811913,2628.0,2627.8,3.05852141]
[1729588135908,3.88130134,2627.9,2627.8,0.07318252]
[1729588136115,3.88130134,2627.9,2627.3,4.63877]
[1729588136308,3.88130134,2627.9,2627.5,2.98533889]
[1729588136309,0.01,2627.8,2627.5,2.98533889]
[1729588136506,0.01,2627.8,2627.6,0.07408936]
[1729588139508,0.01,2628.0,2627.7,3.80551]
[1729588139815,0.01,2628.0,2627.8,3.05934212]
[1729588140722,0.02,2628.0,2627.8,3.05934212]
[1729588141049,0.01,2628.0,2627.8,3.05934212]
[1729588141409,0.01,2628.0,2627.8,3.86214212]
[1729588141606,0.01,2628.0,2627.8,8.51063924]
[1729588141805,0.01,2628.4,2627.9,0.07610345]
[1729588142010,0.01897107,2629.1,2628.6,3.80423]
[1729588142011,0.8085,2629.0,2628.6,3.80423]
[1729588142262,3.82259107,2629.1,2628.0,0.07406692]
[1729588142263,0.01897107,2629.1,2628.9,2.98533889]
[1729588142550,0.01,2629.4,2629.0,3.87720118]
[1729588143051,0.01,2629.7,2629.3,2.98533889]
[1729588143360,0.01,2629.7,2629.5,2.98533889]
[1729588143361,5.5,2629.7,2629.5,2.98533889]
[1729588143868,5.5,2629.7,2629.6,0.07289034]
[1729588144257,11.46970947,2629.7,2629.6,0.07289034]
[1729588144567,3.80331,2629.3,2628.9,2.98533889]
[1729588145019,0.08599134,2629.4,2629.0,0.07276037]
[1729588145220,3.88914134,2629.4,2629.0,0.07276037]
[1729588146363,0.08599134,2629.4,2629.0,0.07276037]
[1729588146561,0.01,2629.4,2629.0,0.07276037]
[1729588146762,3.81317,2629.4,2629.0,0.07276037]
[1729588148036,0.01,2629.4,2629.0,0.07276037]
[1729588148370,0.01,2629.4,2629.0,3.87647037]
[1729588148522,3.81316,2629.4,2629.0,0.07276037]
[1729588150050,0.02,2629.2,2629.0,0.07276037]
[1729588150359,0.02,2629.2,2628.8,4.62548]
[1729588150557,0.02,2629.2,2629.1,0.07224039]
[1729588150766,0.02,2629.2,2628.8,4.62551]
[1729588150916,0.02,2629.2,2629.1,0.07224039]
[1729588151121,0.40993013,2629.2,2628.8,4.62551]
[1729588151453,0.40993013,2629.2,2628.9,0.07232643]
[1729588153189,0.40993013,2629.2,2628.9,3.87609643]
[1729588153347,3.87905134,2629.5,2629.1,3.80353]
[1729588153348,0.01,2629.4,2629.1,3.80353]
[1729588153669,3.81212,2630.2,2629.5,3.80289]
[1729588153670,0.02,2630.0,2629.5,3.80289]
[1729588153999,0.02,2630.0,2629.6,6.86018857]
[1729588154156,0.01,2630.2,2629.9,4.59483]
[1729588154483,0.01897107,2630.3,2630.1,3.80204]
[1729588154693,0.02,2630.4,2630.2,0.07171195]
[1729588155382,0.06049134,2630.7,2630.2,0.07171195]
[1729588155580,0.50622161,2630.7,2630.2,0.07171195]
[1729588155784,0.44573027,2630.7,2630.2,6.85896084]
[1729588155995,3.80089,2631.0,2630.6,2.98533889]
[1729588156277,3.80089,2631.0,2630.7,0.07149708]